Workbook

Sheet LOTES LICITAÇÃO
A1: GOVERNO DO ESTADO DO ESPÍRITO SANTO | W1: DIAS SEMANA | X1: DIAS ANO | Y1: OBS
A2: SECRETARIA DE ESTADO DA EDUCAÇÃO | W2: 5 | X2: 204 | Y2: Regular/EJA
A3: SUBSECRETARIA DE SUPORTE A EDUCAÇÃO | W3: 4 | X3: =ROUNDUP(X2 / W2 * W3, 0) -> 164
A4: GERÊNCIA DE APOIO ESCOLAR | W4: 3 | X4: =ROUNDUP(X2 / W2 * W4, 0) -> 123
A5: PROGRAMA ESTADUAL DE TRANSPORTE ESCOLAR - PETE | W5: 2 | X5: =ROUNDUP(X2 / W2 * W5, 0) -> 82 | Y5: AEE/CAEE
U6: 204 | V6: DIAS LETIVOS* | W6: 1 | X6: =ROUNDUP(X2 / W2 * W6, 0) -> 41
A7: LOTES POR VEÍCULO - MUNICÍPIO DE JOAO NEIVA
A10: Veículo | B10: Código Rota | C10: Descrição da Rota | D10: Escola | E10: Tipo de Linha | F10: Turno | G10: Horários* | I10: Dias/ Semana | J10: Monitor | K10: Alunos | N10: Quilometragem | R10: Capacidade Veículo | S10: Custo
G11: Entrada* | H11: Saída | K11: Estado | L11: Município | M11: Total | N11: Ida | O11: Volta | P11: Aprov. | Q11: Total | S11: R$/km | T11: Estado | U11: Município | V11: Total
A12: 1 | B12: 20222130067 | C12: IDA MUNICÍPIO E ESTADO - PROP MADSON X BR 259 X SANTA EMILIA X CAVALINHO X JOAO NEIVA X ESCOLA | D12: EEEFM JOAO NEIVA / EMPEIF CAVALINHO / EMEF PROFESSORA MARIA OLIRIA SARCINELLI CAMPAGNARO | E12: TR | F12: M | I12: 5 | J12: SIM | K12: 2 | L12: 5 | M12: =SUM(K12:L12) -> 7 | N12: 30.6 | O12: 0 | P12: 6.7 | Q12: =SUM(N12:P12) -> 37.3 | R12: 08 passageiros | S12: R$ 5.96 | T12: =ROUND(V12*K12/M12,2) -> R$ 12,957.38 | U12: =V12-T12 -> R$ 32,393.45 | V12: =IF(M12=0,0,ROUND(S12*Q12*VLOOKUP(I12, W2:Y6, 2, FALSE),2)) -> R$ 45,350.83
A13: 1 | B13: 20222130068 | C13: VOLTA ESTADO - BR 259 X PROP MADSON ( CONEXÃO BARRA TRIUNFO) | D13: EEEFM JOAO NEIVA | E13: CO | F13: M | I13: 5 | J13: NÃO | K13: 1 | L13: 0 | M13: =SUM(K13:L13) -> 1 | N13: 0 | O13: 5 | P13: 0 | Q13: =SUM(N13:P13) -> 5 | R13: 08 passageiros | S13: R$ 5.96 | T13: =ROUND(V13*K13/M13,2) -> R$ 6,079.20 | U13: =V13-T13 -> R$ 0.00 | V13: =IF(M13=0,0,ROUND(S13*Q13*VLOOKUP(I13, W2:Y6, 2, FALSE),2)) -> R$ 6,079.20
A14: 1 | B14: 2130067 | C14: VOLTA MUNICÍPIO - PROP MADSON X BR 259 X SANTA EMILIA X CAVALINHO X JOAO NEIVA X ESCOLA | D14: EMPEIF CAVALINHO / EMEF PROFESSORA MARIA OLIRIA SARCINELLI CAMPAGNARO | E14: TR | F14: M | I14: 5 | J14: SIM | K14: 0 | L14: 5 | M14: =SUM(K14:L14) -> 5 | N14: 0 | O14: 30.7 | P14: 0 | Q14: =SUM(N14:P14) -> 30.7 | R14: 08 passageiros | S14: R$ 5.96 | T14: =ROUND(V14*K14/M14,2) -> R$ 0.00 | U14: =V14-T14 -> R$ 37,326.29 | V14: =IF(M14=0,0,ROUND(S14*Q14*VLOOKUP(I14, W2:Y6, 2, FALSE),2)) -> R$ 37,326.29
A15: TOTAL DO LOTE | K15: =SUM(K12:K14) -> 3 | L15: 10 | M15: 13 | N15: 30.6 | O15: 35.7 | P15: 6.7 | Q15: 73 | T15: =SUM(T12:T14) -> R$ 19,036.58 | U15: =SUM(U12:U14) -> R$ 69,719.74 | V15: =SUM(V12:V14) -> R$ 88,756.32
A17: Veículo | B17: Código Rota | C17: Descrição da Rota | D17: Escola | E17: Tipo de Linha | F17: Turno | G17: Horários* | I17: Dias/ Semana | J17: Monitor | K17: Alunos | N17: Quilometragem | R17: Capacidade Veículo | S17: Custo
G18: Entrada* | H18: Saída | K18: Estado | L18: Município | M18: Total | N18: Ida | O18: Volta | P18: Aprov. | Q18: Total | S18: R$/km | T18: Estado | U18: Município | V18: Total
A19: 2 | B19: 20172130005 | C19: IDA ESTADO E MUNICÍPIO - LAGOA DO LIMÃO - VALADA DE CAVALINHO - EMPEIF CAVALINHO -EMEF PROF. MARIA OLIRIA - EEEFM JOÃO NEIVA | D19: EEEFM JOAO NEIVA / EMPEIF CAVALINHO / EMEF PROFESSORA MARIA OLIRIA SARCINELLI CAMPAGNARO | E19: TR | F19: M | I19: 5 | J19: SIM | K19: 5 | L19: 8 | M19: =SUM(K19:L19) -> 13 | N19: 23.3 | O19: 0 | P19: 14.3 | Q19: =SUM(N19:P19) -> 37.6 | R19: 15 passageiros | S19: R$ 7.82 | T19: =ROUND(V19*K19/M19,2) -> R$ 23,070.20 | U19: =V19-T19 -> R$ 36,912.33 | V19: =IF(M19=0,0,ROUND(S19*Q19*VLOOKUP(I19, W2:Y6, 2, FALSE),2)) -> R$ 59,982.53
A20: 2 | B20: 20222130066 | C20: VOLTA ESTADO - LAGOA DO LIMÃO - VALADA DE CAVALINHO - EEEFM JOÃO NEIVA (BARRA DO TRIUNFO) | D20: EEEFM JOAO NEIVA | E20: CO | F20: M | I20: 5 | J20: NÃO | K20: 5 | L20: 0 | M20: =SUM(K20:L20) -> 5 | N20: 0 | O20: 8.2 | P20: 0 | Q20: =SUM(N20:P20) -> 8.2 | R20: 15 passageiros | S20: R$ 7.82 | T20: =ROUND(V20*K20/M20,2) -> R$ 13,081.30 | U20: =V20-T20 -> R$ 0.00 | V20: =IF(M20=0,0,ROUND(S20*Q20*VLOOKUP(I20, W2:Y6, 2, FALSE),2)) -> R$ 13,081.30
A21: 2 | B21: 2130005 | C21: VOLTA MUNICÍPIO - LAGOA DO LIMÃO - VALADA DE CAVALINHO - EMPEIF CAVALINHO -EMEF PROF. MARIA OLIRIA - EEEFM JOÃO NEIVA | D21: EMPEIF CAVALINHO / EMEF PROFESSORA MARIA OLIRIA SARCINELLI CAMPAGNARO | E21: TR | F21: M | I21: 5 | J21: SIM | K21: 0 | L21: 8 | M21: =SUM(K21:L21) -> 8 | N21: 0 | O21: 23.3 | P21: 0 | Q21: =SUM(N21:P21) -> 23.3 | R21: 15 passageiros | S21: R$ 7.82 | T21: =ROUND(V21*K21/M21,2) -> R$ 0.00 | U21: =V21-T21 -> R$ 37,170.02 | V21: =IF(M21=0,0,ROUND(S21*Q21*VLOOKUP(I21, W2:Y6, 2, FALSE),2)) -> R$ 37,170.02
A22: TOTAL DO LOTE | K22: =SUM(K19:K21) -> 10 | L22: 16 | M22: 26 | N22: 23.3 | O22: 31.5 | P22: 14.3 | Q22: 69.1 | T22: =SUM(T19:T21) -> R$ 36,151.50 | U22: =SUM(U19:U21) -> R$ 74,082.35 | V22: =SUM(V19:V21) -> R$ 110,233.85
A24: Veículo | B24: Código Rota | C24: Descrição da Rota | D24: Escola | E24: Tipo de Linha | F24: Turno | G24: Horários* | I24: Dias/ Semana | J24: Monitor | K24: Alunos | N24: Quilometragem | R24: Capacidade Veículo | S24: Custo
G25: Entrada* | H25: Saída | K25: Estado | L25: Município | M25: Total | N25: Ida | O25: Volta | P25: Aprov. | Q25: Total | S25: R$/km | T25: Estado | U25: Município | V25: Total
A26: 3 | B26: 21300732 | C26: VOLTA INTEGRAL MUNICIPAL - PASTO NOVO X FAZENDA PANDONFI X PROPIEDADE ROGÉRIO SOEIRO - CONEXÃO COM A ROTA 20172130015 | D26: EMEIF JOSE REBUZZI SARCINELLI | E26: CO | F26: I | I26: 5 | J26: SIM | K26: 0 | L26: 1 | M26: =SUM(K26:L26) -> 1 | N26: 0 | O26: 6.6 | P26: 0 | Q26: =SUM(N26:P26) -> 6.6 | R26: 08 passageiros | S26: R$ 14.49 | T26: =ROUND(V26*K26/M26,2) -> R$ 0.00 | U26: =V26-T26 -> R$ 19,509.34 | V26: =IF(M26=0,0,ROUND(S26*Q26*VLOOKUP(I26, W2:Y6, 2, FALSE),2)) -> R$ 19,509.34
A27: 3 | B27: 20222130076 | C27: VOLTA ESTADO - PASTO NOVO X FAZENDA PANDONFI X PROPIEDADE ROGÉRIO SOEIRO - CONEXÃO COM A ROTA 20172130015 | D27: EEEFM JOAO NEIVA | E27: CO | F27: M | I27: 5 | J27: NÃO | K27: 1 | L27: 0 | M27: =SUM(K27:L27) -> 1 | N27: 0 | O27: 5.2 | P27: 0 | Q27: =SUM(N27:P27) -> 5.2 | R27: 08 passageiros | S27: R$ 14.49 | T27: =ROUND(V27*K27/M27,2) -> R$ 15,370.99 | U27: =V27-T27 -> R$ 0.00 | V27: =IF(M27=0,0,ROUND(S27*Q27*VLOOKUP(I27, W2:Y6, 2, FALSE),2)) -> R$ 15,370.99
A28: 3 | B28: 20222130073 | C28: IDA ESTADO E MUNICÍPIO - PASTO NOVO X FAZENDA PANDONFI X PROPIEDADE ROGÉRIO SOEIRO - CONEXÃO COM A ROTA 20172130015 (RIBEIRÃO DE CIMA/ RIBEIRÃO DO MEIO ) | D28: EEEFM JOAO NEIVA / EMEIF JOSE REBUZZI SARCINELLI / EMEF PROFESSORA MARIA OLIRIA SARCINELLI CAMPAGNARO | E28: CO | F28: M | I28: 5 | J28: SIM | K28: 1 | L28: 6 | M28: =SUM(K28:L28) -> 7 | N28: 6.6 | O28: 0 | P28: 6.6 | Q28: =SUM(N28:P28) -> 13.2 | R28: 08 passageiros | S28: R$ 14.49 | T28: =ROUND(V28*K28/M28,2) -> R$ 5,574.10 | U28: =V28-T28 -> R$ 33,444.57 | V28: =IF(M28=0,0,ROUND(S28*Q28*VLOOKUP(I28, W2:Y6, 2, FALSE),2)) -> R$ 39,018.67
A29: 3 | B29: 2130073 | C29: VOLTA MUNICÍPIO - PASTO NOVO X FAZENDA PANDONFI X PROPIEDADE ROGÉRIO SOEIRO - CONEXÃO COM A ROTA 20172130015 | D29: EMEIF JOSE REBUZZI SARCINELLI / EMEF PROFESSORA MARIA OLIRIA SARCINELLI CAMPAGNARO | E29: CO | F29: M | I29: 5 | J29: SIM | K29: 0 | L29: 5 | M29: =SUM(K29:L29) -> 5 | N29: 0 | O29: 6.6 | P29: 0 | Q29: =SUM(N29:P29) -> 6.6 | R29: 08 passageiros | S29: R$ 14.49 | T29: =ROUND(V29*K29/M29,2) -> R$ 0.00 | U29: =V29-T29 -> R$ 19,509.34 | V29: =IF(M29=0,0,ROUND(S29*Q29*VLOOKUP(I29, W2:Y6, 2, FALSE),2)) -> R$ 19,509.34
A30: TOTAL DO LOTE | K30: =SUM(K26:K29) -> 2 | L30: 12 | M30: 14 | N30: 6.6 | O30: 18.4 | P30: 6.6 | Q30: 31.6 | T30: =SUM(T26:T29) -> R$ 20,945.09 | U30: =SUM(U26:U29) -> R$ 72,463.25 | V30: =SUM(V26:V29) -> R$ 93,408.34
A32: Veículo | B32: Código Rota | C32: Descrição da Rota | D32: Escola | E32: Tipo de Linha | F32: Turno | G32: Horários* | I32: Dias/ Semana | J32: Monitor | K32: Alunos | N32: Quilometragem | R32: Capacidade Veículo | S32: Custo
G33: Entrada* | H33: Saída | K33: Estado | L33: Município | M33: Total | N33: Ida | O33: Volta | P33: Aprov. | Q33: Total | S33: R$/km | T33: Estado | U33: Município | V33: Total
A34: 4 | B34: 2130077 | C34: IDA MUNICÍPIO - PRIMEIRA VIAGEM - BARRA DO TRIUNFO X CHOEIRINHA (CONEXÃO BARRA DO TRIUNFO) | D34: EMEIF GUILHERME BAPTISTA | E34: CO | F34: M | I34: 5 | J34: SIM | K34: 0 | L34: 1 | M34: =SUM(K34:L34) -> 1 | N34: 0 | O34: 3.8 | P34: 11.2 | Q34: =SUM(N34:P34) -> 15 | R34: 08 passageiros | S34: R$ 7.22 | T34: =ROUND(V34*K34/M34,2) -> R$ 0.00 | U34: =V34-T34 -> R$ 22,093.20 | V34: =IF(M34=0,0,ROUND(S34*Q34*VLOOKUP(I34, W2:Y6, 2, FALSE),2)) -> R$ 22,093.20
A35: 4 | B35: 21300721 | C35: IDA MUNICÍPIO - SEGUNDA VIAGEM - ALTO DA BOA VISTA - EMPEIF BARRA DO TRIUNFO | D35: EMPEIF BARRA DO TRIUNFO | E35: TR | F35: M | I35: 5 | J35: SIM | K35: 0 | L35: 4 | M35: =SUM(K35:L35) -> 4 | N35: 10.3 | O35: 0 | P35: 0 | Q35: =SUM(N35:P35) -> 10.3 | R35: 08 passageiros | S35: R$ 7.22 | T35: =ROUND(V35*K35/M35,2) -> R$ 0.00 | U35: =V35-T35 -> R$ 15,170.66 | V35: =IF(M35=0,0,ROUND(S35*Q35*VLOOKUP(I35, W2:Y6, 2, FALSE),2)) -> R$ 15,170.66
A36: 4 | B36: 2130007 | C36: VOLTA MUNICÍPIO - PRIMEIRA VIAGEM - ALTO DA BOA VISTA X CHOEIRINHA - EMPEIF BARRA DO TRIUNFO | D36: EMEIF GUILHERME BAPTISTA / EMPEIF BARRA DO TRIUNFO | E36: CO | F36: M | I36: 5 | J36: SIM | K36: 0 | L36: 7 | M36: =SUM(K36:L36) -> 7 | N36: 0 | O36: 16 | P36: 0 | Q36: =SUM(N36:P36) -> 16 | R36: 08 passageiros | S36: R$ 7.22 | T36: =ROUND(V36*K36/M36,2) -> R$ 0.00 | U36: =V36-T36 -> R$ 23,566.08 | V36: =IF(M36=0,0,ROUND(S36*Q36*VLOOKUP(I36, W2:Y6, 2, FALSE),2)) -> R$ 23,566.08
A37: 4 | B37: 20172130007 | C37: VOLTA ESTADO - SEGUNDA VIAGEM - BARRA DO TRIUNFO X CHOEIRINHA (CONEXÃO BARRA DO TRIUNFO) | D37: EEEFM JOAO NEIVA | E37: CO | F37: M | I37: 5 | J37: NÃO | K37: 2 | L37: 0 | M37: =SUM(K37:L37) -> 2 | N37: 0 | O37: 6.6 | P37: 11.2 | Q37: =SUM(N37:P37) -> 17.8 | R37: 08 passageiros | S37: R$ 7.22 | T37: =ROUND(V37*K37/M37,2) -> R$ 26,217.26 | U37: =V37-T37 -> R$ 0.00 | V37: =IF(M37=0,0,ROUND(S37*Q37*VLOOKUP(I37, W2:Y6, 2, FALSE),2)) -> R$ 26,217.26
A38: TOTAL DO LOTE | K38: =SUM(K34:K37) -> 2 | L38: 12 | M38: 14 | N38: 10.3 | O38: 26.4 | P38: 22.4 | Q38: 59.1 | T38: =SUM(T34:T37) -> R$ 26,217.26 | U38: =SUM(U34:U37) -> R$ 60,829.94 | V38: =SUM(V34:V37) -> R$ 87,047.20
A40: Veículo | B40: Código Rota | C40: Descrição da Rota | D40: Escola | E40: Tipo de Linha | F40: Turno | G40: Horários* | I40: Dias/ Semana | J40: Monitor | K40: Alunos | N40: Quilometragem | R40: Capacidade Veículo | S40: Custo
G41: Entrada* | H41: Saída | K41: Estado | L41: Município | M41: Total | N41: Ida | O41: Volta | P41: Aprov. | Q41: Total | S41: R$/km | T41: Estado | U41: Município | V41: Total
A42: 5 | B42: 2130061 | C42: VOLTA MUNICÍPIO - PROP ERALDO FAVARATO X EDSON FAVARATO X BR 259 X LINHA DE FERRO X CAVALINHO X TURCO GUIDOLINE X CAVALINHO X JOÃO NEIVA | D42: EMPEIF CAVALINHO / EMEF PROFESSORA MARIA OLIRIA SARCINELLI CAMPAGNARO | E42: TR | F42: M | I42: 5 | J42: SIM | K42: 0 | L42: 10 | M42: =SUM(K42:L42) -> 10 | N42: 0 | O42: 32.9 | P42: 0 | Q42: =SUM(N42:P42) -> 32.9 | R42: 15 passageiros | S42: R$ 7.03 | T42: =ROUND(V42*K42/M42,2) -> R$ 0.00 | U42: =V42-T42 -> R$ 47,182.55 | V42: =IF(M42=0,0,ROUND(S42*Q42*VLOOKUP(I42, W2:Y6, 2, FALSE),2)) -> R$ 47,182.55
A43: 5 | B43: 20222130061 | C43: IDA ESTADO E MUNICÍPIO - PROP ERALDO FAVARATO X EDSON FAVARATO X BR 259 X LINHA DE FERRO X CAVALINHO X TURCO GUIDOLINE X CAVALINHO X JOÃO NEIVA | D43: EEEFM JOAO NEIVA / EMPEIF CAVALINHO / EMEF PROFESSORA MARIA OLIRIA SARCINELLI CAMPAGNARO | E43: TR | F43: M | I43: 5 | J43: SIM | K43: 1 | L43: 10 | M43: =SUM(K43:L43) -> 11 | N43: 33.5 | O43: 0 | P43: 11 | Q43: =SUM(N43:P43) -> 44.5 | R43: 15 passageiros | S43: R$ 7.03 | T43: =ROUND(V43*K43/M43,2) -> R$ 5,801.67 | U43: =V43-T43 -> R$ 58,016.67 | V43: =IF(M43=0,0,ROUND(S43*Q43*VLOOKUP(I43, W2:Y6, 2, FALSE),2)) -> R$ 63,818.34
A44: 5 | B44: 20222130078 | C44: VOLTA ESTADO - CAVALINHO X LINHA DE FERRO - CONEXÃO BARRA DO TRIUNFO | D44: EEEFM JOAO NEIVA | E44: CO | F44: M | I44: 5 | J44: NÃO | K44: 1 | L44: 0 | M44: =SUM(K44:L44) -> 1 | N44: 0 | O44: 2.4 | P44: 0 | Q44: =SUM(N44:P44) -> 2.4 | R44: 15 passageiros | S44: R$ 7.03 | T44: =ROUND(V44*K44/M44,2) -> R$ 3,441.89 | U44: =V44-T44 -> R$ 0.00 | V44: =IF(M44=0,0,ROUND(S44*Q44*VLOOKUP(I44, W2:Y6, 2, FALSE),2)) -> R$ 3,441.89
A45: TOTAL DO LOTE | K45: =SUM(K42:K44) -> 2 | L45: 20 | M45: 22 | N45: 33.5 | O45: 35.3 | P45: 11 | Q45: 79.8 | T45: =SUM(T42:T44) -> R$ 9,243.56 | U45: =SUM(U42:U44) -> R$ 105,199.22 | V45: =SUM(V42:V44) -> R$ 114,442.78
A47: Veículo | B47: Código Rota | C47: Descrição da Rota | D47: Escola | E47: Tipo de Linha | F47: Turno | G47: Horários* | I47: Dias/ Semana | J47: Monitor | K47: Alunos | N47: Quilometragem | R47: Capacidade Veículo | S47: Custo
G48: Entrada* | H48: Saída | K48: Estado | L48: Município | M48: Total | N48: Ida | O48: Volta | P48: Aprov. | Q48: Total | S48: R$/km | T48: Estado | U48: Município | V48: Total
A49: 6 | B49: 20222130069 | C49: VOLTA ESTADO - ALARICO X PELADO (CONEXÃO COM A ROTA 20212130030 ) - (RIBEIRÃO) | D49: EEEFM JOAO NEIVA | E49: CO | F49: M | I49: 5 | J49: NÃO | K49: 3 | L49: 0 | M49: =SUM(K49:L49) -> 3 | N49: 0 | O49: 3.7 | P49: 0 | Q49: =SUM(N49:P49) -> 3.7 | R49: 23 passageiros | S49: R$ 9.57 | T49: =ROUND(V49*K49/M49,2) -> R$ 7,223.44 | U49: =V49-T49 -> R$ 0.00 | V49: =IF(M49=0,0,ROUND(S49*Q49*VLOOKUP(I49, W2:Y6, 2, FALSE),2)) -> R$ 7,223.44
A50: 6 | B50: 21300632 | C50: VOLTA MUNICÍPIO INTEGRAL - CRISTAL X PIRAQUEAÇU X PELADO X RETIRO | D50: EMEIF JOSE REBUZZI SARCINELLI | E50: TR | F50: I | I50: 5 | J50: SIM | K50: 0 | L50: 4 | M50: =SUM(K50:L50) -> 4 | N50: 0 | O50: 15.6 | P50: 0 | Q50: =SUM(N50:P50) -> 15.6 | R50: 23 passageiros | S50: R$ 9.57 | T50: =ROUND(V50*K50/M50,2) -> R$ 0.00 | U50: =V50-T50 -> R$ 30,455.57 | V50: =IF(M50=0,0,ROUND(S50*Q50*VLOOKUP(I50, W2:Y6, 2, FALSE),2)) -> R$ 30,455.57
A51: 6 | B51: 2130063 | C51: VOLTA MUNICÍPIO - JOÃO NEIVA X CRISTAL X RETIRO X PELADO X PIRAQUEAÇU | D51: EMEIF JOSE REBUZZI SARCINELLI / EMEIF DOUTOR ORLINDO FRANCISCO BORGES / EMEF PROFESSORA MARIA OLIRIA SARCINELLI CAMPAGNARO | E51: TR | F51: M | I51: 5 | J51: SIM | K51: 0 | L51: 15 | M51: =SUM(K51:L51) -> 15 | N51: 0 | O51: 23.8 | P51: 0 | Q51: =SUM(N51:P51) -> 23.8 | R51: 23 passageiros | S51: R$ 9.57 | T51: =ROUND(V51*K51/M51,2) -> R$ 0.00 | U51: =V51-T51 -> R$ 46,464.26 | V51: =IF(M51=0,0,ROUND(S51*Q51*VLOOKUP(I51, W2:Y6, 2, FALSE),2)) -> R$ 46,464.26
A52: 6 | B52: 20222130063 | C52: IDA ESTADO E MUNICÍPIO - RETIRO X PELADO X PIRAQUEAÇU X CRISTAL X JOÃO NEIVA | D52: EEEFM JOAO NEIVA / EMEIF JOSE REBUZZI SARCINELLI / EMEIF DOUTOR ORLINDO FRANCISCO BORGES / EMEF PROFESSORA MARIA OLIRIA SARCINELLI CAMPAGNARO | E52: TR | F52: M | I52: 5 | J52: SIM | K52: 3 | L52: 19 | M52: =SUM(K52:L52) -> 22 | N52: 22.6 | O52: 0 | P52: 7.3 | Q52: =SUM(N52:P52) -> 29.9 | R52: 23 passageiros | S52: R$ 9.57 | T52: =ROUND(V52*K52/M52,2) -> R$ 7,959.98 | U52: =V52-T52 -> R$ 50,413.19 | V52: =IF(M52=0,0,ROUND(S52*Q52*VLOOKUP(I52, W2:Y6, 2, FALSE),2)) -> R$ 58,373.17
A53: TOTAL DO LOTE | K53: =SUM(K49:K52) -> 6 | L53: 38 | M53: 44 | N53: 22.6 | O53: 43.1 | P53: 7.3 | Q53: 73 | T53: =SUM(T49:T52) -> R$ 15,183.42 | U53: =SUM(U49:U52) -> R$ 127,333.02 | V53: =SUM(V49:V52) -> R$ 142,516.44
A55: Veículo | B55: Código Rota | C55: Descrição da Rota | D55: Escola | E55: Tipo de Linha | F55: Turno | G55: Horários* | I55: Dias/ Semana | J55: Monitor | K55: Alunos | N55: Quilometragem | R55: Capacidade Veículo | S55: Custo
G56: Entrada* | H56: Saída | K56: Estado | L56: Município | M56: Total | N56: Ida | O56: Volta | P56: Aprov. | Q56: Total | S56: R$/km | T56: Estado | U56: Município | V56: Total
A57: 7 | B57: 20222130064 | C57: IDA ESTADO E MUNICÍPIO - AREA RURAL MUNDO NOVO X EEEFM JOAO NEIVA | D57: EEEFM JOAO NEIVA / EMEF PEDRO NOLASCO / EMEF PROFESSORA MARIA OLIRIA SARCINELLI CAMPAGNARO / EMEF MISSIONARIOS COMBONIANOS / EMEIF TERESITA BORRINI FARINA | E57: TR | F57: M | I57: 5 | J57: SIM | K57: 3 | L57: 9 | M57: =SUM(K57:L57) -> 12 | N57: 8.5 | O57: 0 | P57: 5.3 | Q57: =SUM(N57:P57) -> 13.8 | R57: 15 passageiros | S57: R$ 15.44 | T57: =ROUND(V57*K57/M57,2) -> R$ 10,866.67 | U57: =V57-T57 -> R$ 32,600.02 | V57: =IF(M57=0,0,ROUND(S57*Q57*VLOOKUP(I57, W2:Y6, 2, FALSE),2)) -> R$ 43,466.69
A58: 7 | B58: 20222130074 | C58: VOLTA ESTADO - AREA RURAL MUNDO NOVO X EEEFM JOAO NEIVA | D58: EEEFM JOAO NEIVA | E58: TR | F58: M | I58: 5 | J58: NÃO | K58: 3 | L58: 0 | M58: =SUM(K58:L58) -> 3 | N58: 0 | O58: 5.3 | P58: 0 | Q58: =SUM(N58:P58) -> 5.3 | R58: 15 passageiros | S58: R$ 15.44 | T58: =ROUND(V58*K58/M58,2) -> R$ 16,693.73 | U58: =V58-T58 -> R$ 0.00 | V58: =IF(M58=0,0,ROUND(S58*Q58*VLOOKUP(I58, W2:Y6, 2, FALSE),2)) -> R$ 16,693.73
A59: 7 | B59: 2130064 | C59: VOLTA MUNICÍPIO - AREA RURAL MUNDO NOVO X EEEFM JOAO NEIVA | D59: EMEF PEDRO NOLASCO / EMEF PROFESSORA MARIA OLIRIA SARCINELLI CAMPAGNARO / EMEF MISSIONARIOS COMBONIANOS / EMEIF TERESITA BORRINI FARINA | E59: TR | F59: M | I59: 5 | J59: SIM | K59: 0 | L59: 9 | M59: =SUM(K59:L59) -> 9 | N59: 0 | O59: 8.5 | P59: 0 | Q59: =SUM(N59:P59) -> 8.5 | R59: 15 passageiros | S59: R$ 15.44 | T59: =ROUND(V59*K59/M59,2) -> R$ 0.00 | U59: =V59-T59 -> R$ 26,772.96 | V59: =IF(M59=0,0,ROUND(S59*Q59*VLOOKUP(I59, W2:Y6, 2, FALSE),2)) -> R$ 26,772.96
A60: TOTAL DO LOTE | K60: =SUM(K57:K59) -> 6 | L60: 18 | M60: 24 | N60: 8.5 | O60: 13.8 | P60: 5.3 | Q60: 27.6 | T60: =SUM(T57:T59) -> R$ 27,560.40 | U60: =SUM(U57:U59) -> R$ 59,372.98 | V60: =SUM(V57:V59) -> R$ 86,933.38
A62: Veículo | B62: Código Rota | C62: Descrição da Rota | D62: Escola | E62: Tipo de Linha | F62: Turno | G62: Horários* | I62: Dias/ Semana | J62: Monitor | K62: Alunos | N62: Quilometragem | R62: Capacidade Veículo | S62: Custo
G63: Entrada* | H63: Saída | K63: Estado | L63: Município | M63: Total | N63: Ida | O63: Volta | P63: Aprov. | Q63: Total | S63: R$/km | T63: Estado | U63: Município | V63: Total
A64: 8 | B64: 20222130070 | C64: IDA ESTADO E MUNICÍPIO - PRIMEIRA VIAGEM - PROP REINALDO FAVARATO X BR-259 X ACIOLI | D64: EMEIF GUILHERME BAPTISTA / EEEFM JOAO NEIVA | E64: CO | F64: M | I64: 5 | J64: SIM | K64: 1 | L64: 1 | M64: =SUM(K64:L64) -> 2 | N64: 15.4 | O64: 0 | P64: 44.2 | Q64: =SUM(N64:P64) -> 59.6 | R64: 08 passageiros | S64: R$ 4.92 | T64: =ROUND(V64*K64/M64,2) -> R$ 29,909.67 | U64: =V64-T64 -> R$ 29,909.66 | V64: =IF(M64=0,0,ROUND(S64*Q64*VLOOKUP(I64, W2:Y6, 2, FALSE),2)) -> R$ 59,819.33
A65: 8 | B65: 20222130071 | C65: VOLTA ESTADO - QUINTA VIAGEM - PROP REINALDO FAVARATO X BR-259 X ACIOLI | D65: EEEFM JOAO NEIVA | E65: CO | F65: M | I65: 5 | J65: NÃO | K65: 1 | L65: 0 | M65: 1 | N65: 0 | O65: 15.4 | P65: 0 | Q65: 15.4 | R65: 08 passageiros | S65: R$ 4.92 | T65: R$ 15,456.67 | U65: R$ 0.00 | V65: =IF(M65=0,0,ROUND(S65*Q65*VLOOKUP(I65, W2:Y6, 2, FALSE),2)) -> R$ 15,456.67
A66: 8 | B66: 2130071 | C66: IDA MUNICÍPIO VESPERTINO - TERCEIRA VIAGEM - PROP ELTON FAVARATO X PROP RENATO MARIN X EMEIF GUILHERME BAPTISTA | D66: EMEIF GUILHERME BAPTISTA | E66: TR | F66: V | I66: 5 | J66: SIM | K66: 0 | L66: 2 | M66: 2 | N66: 8.7 | O66: 0 | P66: 0 | Q66: 8.7 | R66: 08 passageiros | S66: R$ 4.92 | T66: R$ 0.00 | U66: R$ 8,732.02 | V66: =IF(M66=0,0,ROUND(S66*Q66*VLOOKUP(I66, W2:Y6, 2, FALSE),2)) -> R$ 8,732.02
A67: 8 | B67: 21300701 | C67: IDA MUNICÍPIO - SEGUNDA VIAGEM - PROP ELTON FAVARATO X PROP RENATO MARIN X EMEIF GUILHERME BAPTISTA | D67: EMEIF GUILHERME BAPTISTA | E67: TR | F67: M | I67: 5 | J67: SIM | K67: 0 | L67: 4 | M67: 4 | N67: 8.6 | O67: 0 | P67: 0 | Q67: 8.6 | R67: 08 passageiros | S67: R$ 4.92 | T67: R$ 0.00 | U67: R$ 8,631.65 | V67: =IF(M67=0,0,ROUND(S67*Q67*VLOOKUP(I67, W2:Y6, 2, FALSE),2)) -> R$ 8,631.65
A68: 8 | B68: 21300703 | C68: VOLTA DO MUNICÍPIO MATUTINO - QUARTA VIAGEM - PROP REINALDO FAVARATO X PROP ELTON FAVARATO X BR-259 X PROP RENATO MARIN X ACIOLI | D68: EMEIF GUILHERME BAPTISTA | E68: TR | F68: M | I68: 5 | J68: SIM | K68: 0 | L68: 5 | M68: 5 | N68: 0 | O68: 19.2 | P68: 0 | Q68: 19.2 | R68: 08 passageiros | S68: R$ 4.92 | T68: R$ 0.00 | U68: R$ 19,270.66 | V68: =IF(M68=0,0,ROUND(S68*Q68*VLOOKUP(I68, W2:Y6, 2, FALSE),2)) -> R$ 19,270.66
A69: 8 | B69: 2130070 | C69: VOLTA MUNICÍPIO VESPERTINO - SEXTA VIAGEM - PROP ELTON FAVARATO X PROP RENATO MARIN X EMEIF GUILHERME BAPTISTA | D69: EMEIF GUILHERME BAPTISTA | E69: TR | F69: V | I69: 5 | J69: SIM | K69: 0 | L69: 2 | M69: 2 | N69: 0 | O69: 8.7 | P69: 0 | Q69: 8.7 | R69: 08 passageiros | S69: R$ 4.92 | T69: R$ 0.00 | U69: R$ 8,732.02 | V69: =IF(M69=0,0,ROUND(S69*Q69*VLOOKUP(I69, W2:Y6, 2, FALSE),2)) -> R$ 8,732.02
A70: TOTAL DO LOTE | K70: =SUM(K64:K69) -> 2 | L70: 14 | M70: 16 | N70: 32.7 | O70: 43.3 | P70: 44.2 | Q70: 120.2 | T70: =SUM(T64:T69) -> R$ 45,366.34 | U70: =SUM(U64:U69) -> R$ 75,276.01 | V70: =SUM(V64:V69) -> R$ 120,642.35
A72: Veículo | B72: Código Rota | C72: Descrição da Rota | D72: Escola | E72: Tipo de Linha | F72: Turno | G72: Horários* | I72: Dias/ Semana | J72: Monitor | K72: Alunos | N72: Quilometragem | R72: Capacidade Veículo | S72: Custo
G73: Entrada* | H73: Saída | K73: Estado | L73: Município | M73: Total | N73: Ida | O73: Volta | P73: Aprov. | Q73: Total | S73: R$/km | T73: Estado | U73: Município | V73: Total
A74: 9 | B74: 20172130006 | C74: IDA ESTADO - PROPRIEDADE FLORENCIO FAVARATO - BR 259 (CONEXÃO BARRA DO TRIUNFO) | D74: EEEFM JOAO NEIVA | E74: CO | F74: M | I74: 5 | J74: NÃO | K74: 2 | L74: 0 | M74: =SUM(K74:L74) -> 2 | N74: 3 | O74: 0 | P74: 0 | Q74: =SUM(N74:P74) -> 3 | R74: 08 passageiros | S74: R$ 7.48 | T74: =ROUND(V74*K74/M74,2) -> R$ 4,577.76 | U74: =V74-T74 -> R$ 0.00 | V74: =IF(M74=0,0,ROUND(S74*Q74*VLOOKUP(I74, W2:Y6, 2, FALSE),2)) -> R$ 4,577.76
A75: 9 | B75: 21300754 | C75: VOLTA VESPERTINO - (SOMENTE MUNICÍPIO) SANTA HELENA X EMEIF GUILHERME BATISTA | D75: EMEIF GUILHERME BATISTA | E75: TR | F75: V | I75: 5 | J75: SIM | K75: 0 | L75: 4 | M75: 4 | N75: 0 | O75: 5.3 | P75: 0 | Q75: 5.3 | R75: 08 passageiros | S75: R$ 7.48 | T75: R$ 0.00 | U75: R$ 8,087.38 | V75: =IF(M75=0,0,ROUND(S75*Q75*VLOOKUP(I75, W2:Y6, 2, FALSE),2)) -> R$ 8,087.38
A76: 9 | B76: 2130006 | C76: IDA MUNICÍPIO - ESPERANÇA X PROPRIEDADE FLORENCIO FAVARATO - BR 259 - EMEIF GUILHERME BATISTA | D76: EMEIF GUILHERME BATISTA | E76: TR | F76: M | I76: 5 | J76: SIM | K76: 0 | L76: 2 | M76: 2 | N76: 10 | O76: 0 | P76: 0 | Q76: 10 | R76: 08 passageiros | S76: R$ 7.48 | T76: R$ 0.00 | U76: R$ 15,259.20 | V76: =IF(M76=0,0,ROUND(S76*Q76*VLOOKUP(I76, W2:Y6, 2, FALSE),2)) -> R$ 15,259.20
A77: 9 | B77: 20222130075 | C77: VOLTA ESTADO - PROPRIEDADE FLORENCIO FAVARATO - BR 259 ( CONEXÃO BARRA DO TRIUNFO) | D77: EEEFM JOAO NEIVA | E77: CO | F77: M | I77: 5 | J77: NÃO | K77: 2 | L77: 0 | M77: 2 | N77: 0 | O77: 3 | P77: 11.6 | Q77: 14.6 | R77: 08 passageiros | S77: R$ 7.48 | T77: R$ 22,278.43 | U77: R$ 0.00 | V77: =IF(M77=0,0,ROUND(S77*Q77*VLOOKUP(I77, W2:Y6, 2, FALSE),2)) -> R$ 22,278.43
A78: 9 | B78: 21300751 | C78: VOLTA MATUTINO - (SOMENTE MUNICÍPIO) SANTA HELENA X EMEIF GUILHERME BATISTA | D78: EMEIF GUILHERME BATISTA | E78: TR | F78: M | I78: 5 | J78: SIM | K78: 0 | L78: 4 | M78: 4 | N78: 0 | O78: 4.5 | P78: 0 | Q78: 4.5 | R78: 08 passageiros | S78: R$ 7.48 | T78: R$ 0.00 | U78: R$ 6,866.64 | V78: =IF(M78=0,0,ROUND(S78*Q78*VLOOKUP(I78, W2:Y6, 2, FALSE),2)) -> R$ 6,866.64
A79: 9 | B79: 21300753 | C79: VOLTA MUNICÍPIO VESPERTINO - PROPRIEDADE FLORENCIO FAVARATO - BR 259 - EMEIF GUILHERME BATISTA | D79: EMEIF GUILHERME BATISTA | E79: TR | F79: V | I79: 5 | J79: SIM | K79: 0 | L79: 3 | M79: 3 | N79: 0 | O79: 3 | P79: 0 | Q79: 3 | R79: 08 passageiros | S79: R$ 7.48 | T79: R$ 0.00 | U79: R$ 4,577.76 | V79: =IF(M79=0,0,ROUND(S79*Q79*VLOOKUP(I79, W2:Y6, 2, FALSE),2)) -> R$ 4,577.76
A80: 9 | B80: 21300755 | C80: IDA VESPERTINO - (SOMENTE MUNICÍPIO) SANTA HELENA X EMEIF GUILHERME BATISTA | D80: EMEIF GUILHERME BATISTA | E80: TR | F80: V | I80: 5 | J80: SIM | K80: 0 | L80: 3 | M80: 3 | N80: 4.6 | O80: 0 | P80: 0 | Q80: 4.6 | R80: 08 passageiros | S80: R$ 7.48 | T80: R$ 0.00 | U80: R$ 7,019.23 | V80: =IF(M80=0,0,ROUND(S80*Q80*VLOOKUP(I80, W2:Y6, 2, FALSE),2)) -> R$ 7,019.23
A81: 9 | B81: 21300752 | C81: VOLTA MUNICÍPIO - ESPERANÇA X PROPRIEDADE FLORENCIO FAVARATO - BR 259 - EMEIF GUILHERME BATISTA | D81: EMEIF GUILHERME BATISTA | E81: TR | F81: M | I81: 5 | J81: SIM | K81: 0 | L81: 2 | M81: 2 | N81: 0 | O81: 10 | P81: 11.6 | Q81: 21.6 | R81: 08 passageiros | S81: R$ 7.48 | T81: R$ 0.00 | U81: R$ 32,959.87 | V81: =IF(M81=0,0,ROUND(S81*Q81*VLOOKUP(I81, W2:Y6, 2, FALSE),2)) -> R$ 32,959.87
A82: TOTAL DO LOTE | K82: =SUM(K74:K81) -> 4 | L82: 18 | M82: 22 | N82: 17.6 | O82: 25.8 | P82: 23.2 | Q82: 66.6 | T82: =SUM(T74:T81) -> R$ 26,856.19 | U82: =SUM(U74:U81) -> R$ 74,770.08 | V82: =SUM(V74:V81) -> R$ 101,626.27
A84: Veículo | B84: Código Rota | C84: Descrição da Rota | D84: Escola | E84: Tipo de Linha | F84: Turno | G84: Horários* | I84: Dias/ Semana | J84: Monitor | K84: Alunos | N84: Quilometragem | R84: Capacidade Veículo | S84: Custo
G85: Entrada* | H85: Saída | K85: Estado | L85: Município | M85: Total | N85: Ida | O85: Volta | P85: Aprov. | Q85: Total | S85: R$/km | T85: Estado | U85: Município | V85: Total
A86: 10 | B86: 21300072 | C86: IDA MUNICÍPIO - BARRA DO TRIUNFO X PROP BARCELO X SANTA HELENA X ACIOLE | D86: EEEFM JOAO NEIVA / EMEIF GUILHERME BAPTISTA | E86: TR | F86: M | I86: 5 | J86: SIM | K86: 0 | L86: 5 | M86: =SUM(K86:L86) -> 5 | N86: 12.3 | O86: 0 | P86: 0 | Q86: =SUM(N86:P86) -> 12.3 | R86: 15 passageiros | S86: R$ 7.23 | T86: =ROUND(V86*K86/M86,2) -> R$ 0.00 | U86: =V86-T86 -> R$ 18,141.52 | V86: =IF(M86=0,0,ROUND(S86*Q86*VLOOKUP(I86, W2:Y6, 2, FALSE),2)) -> R$ 18,141.52
A87: 10 | B87: 21300073 | C87: IDA MUNICÍPIO - DELABARBA (CACHOEIRA) X GIACOMIN X BARRA DO TRIUNFO | D87: EEEFM JOAO NEIVA / EMPEIF BARRA DO TRIUNFO | E87: TR | F87: M | I87: 5 | J87: SIM | K87: 0 | L87: 11 | M87: 11 | N87: 9 | O87: 0 | P87: 0 | Q87: 9 | R87: 15 passageiros | S87: R$ 7.23 | T87: R$ 0.00 | U87: R$ 13,274.28 | V87: =IF(M87=0,0,ROUND(S87*Q87*VLOOKUP(I87, W2:Y6, 2, FALSE),2)) -> R$ 13,274.28
A88: 10 | B88: 21300075 | C88: VOLTA MUNICÍPIO - BARRA DO TRIUNFO X GIACOMIN X BARCELOS X DELABARBA (CACHOEIRA) | D88: EEEFM JOAO NEIVA / EMPEIF BARRA DO TRIUNFO / EMEIF GUILHERME BAPTISTA | E88: TR | F88: M | I88: 5 | J88: SIM | K88: 0 | L88: 11 | M88: 11 | N88: 0 | O88: 9 | P88: 0 | Q88: 9 | R88: 15 passageiros | S88: R$ 7.23 | T88: R$ 0.00 | U88: R$ 13,274.28 | V88: =IF(M88=0,0,ROUND(S88*Q88*VLOOKUP(I88, W2:Y6, 2, FALSE),2)) -> R$ 13,274.28
A89: 10 | B89: 21300076 | C89: VOLTA MUNICÍPIO - PROP MAZOLINE X BARRA DO TRIUNFO | D89: EEEFM JOAO NEIVA / EMPEIF BARRA DO TRIUNFO / EMEIF GUILHERME BAPTISTA | E89: TR | F89: M | I89: 5 | J89: SIM | K89: 0 | L89: 6 | M89: 6 | N89: 0 | O89: 4.3 | P89: 0 | Q89: 4.3 | R89: 15 passageiros | S89: R$ 7.23 | T89: R$ 0.00 | U89: R$ 6,342.16 | V89: =IF(M89=0,0,ROUND(S89*Q89*VLOOKUP(I89, W2:Y6, 2, FALSE),2)) -> R$ 6,342.16
A90: 10 | B90: 20222130077 | C90: IDA ESTADO E MUNICÍPIO - CÓRREGO CACHEIRINHA X BARRA DO TRIUNFO X PROP MAZOLINE | D90: EEEFM JOAO NEIVA / EMEIF GUILHERME BAPTISTA | E90: CO | F90: M | I90: 5 | J90: SIM | K90: 2 | L90: 4 | M90: 6 | N90: 11.7 | O90: 0 | P90: 31.3 | Q90: 43 | R90: 15 passageiros | S90: R$ 7.23 | T90: R$ 21,140.52 | U90: R$ 42,281.04 | V90: =IF(M90=0,0,ROUND(S90*Q90*VLOOKUP(I90, W2:Y6, 2, FALSE),2)) -> R$ 63,421.56
A91: 10 | B91: 21300074 | C91: IDA MUNICÍPIO - PROP MAZOLINE X BARRA DO TRIUNFO | D91: EEEFM JOAO NEIVA / EMPEIF BARRA DO TRIUNFO | E91: TR | F91: M | I91: 5 | J91: SIM | K91: 0 | L91: 4 | M91: 4 | N91: 4.3 | O91: 0 | P91: 0 | Q91: 4.3 | R91: 15 passageiros | S91: R$ 7.23 | T91: R$ 0.00 | U91: R$ 6,342.16 | V91: =IF(M91=0,0,ROUND(S91*Q91*VLOOKUP(I91, W2:Y6, 2, FALSE),2)) -> R$ 6,342.16
A92: TOTAL DO LOTE | K92: =SUM(K86:K91) -> 2 | L92: 41 | M92: 43 | N92: 37.3 | O92: 13.3 | P92: 31.3 | Q92: 81.9 | T92: =SUM(T86:T91) -> R$ 21,140.52 | U92: =SUM(U86:U91) -> R$ 99,655.44 | V92: =SUM(V86:V91) -> R$ 120,795.96
A94: TOTAL GERAL | K94: =+K15+K22+K30+K38+K45+K53+K60+K70+K82+K92 -> 39 | L94: 199 | M94: 238 | N94: 223 | O94: 286.6 | P94: 172.3 | Q94: 681.9 | T94: =+T15+T22+T30+T38+T45+T53+T60+T70+T82+T92 -> R$ 247,700.86 | U94: =+U15+U22+U30+U38+U45+U53+U60+U70+U82+U92 -> R$ 818,702.03 | V94: =+V15+V22+V30+V38+V45+V53+V60+V70+V82+V92 -> R$ 1,066,402.89
A96: Obs: Dias Letivos Ano*: Regular 5 ; EJA 5 ; APAE/AEE 2. Observação: As capacidades dos veículos definidas pela SEDU são as mínimas exigidas em cada uma das 4 faixas de veículos (08, 15, 23 e 41 passageiros), podendo ser executadas por veículos de maior capacidade nos casos em que a via permita e que não haja prejuízo aos alunos. Horários: Estimativa de horários de entrada e saída dos alunos da escola.
